bitfinex/quotes_ETHUSD_20251218
["timestamp","ask_amount","ask_price","bid_price","bid_amount"]
[1766026408478,2.3911,2845.7,2845.1,0.02821969]
[1766026408677,2.867,2845.7,2845.1,0.02821969]
[1766026409403,2.3901,2845.6,2845.1,0.02821969]
[1766026409604,0.2878,2845.7,2844.9,0.02821969]
[1766026409605,2.866,2845.5,2844.9,0.02821969]
[1766026409971,2.866,2845.5,2844.9,0.10881969]
[1766026410814,2.866,2845.5,2845.1,0.02821969]
[1766026411197,2.866,2845.5,2844.9,0.02821969]
[1766026411702,2.866,2845.5,2844.9,0.66938947]
[1766026412306,0.4759,2844.7,2843.6,0.0739]
[1766026412512,2.866,2844.7,2843.7,0.0739]
[1766026412872,2.3901,2844.7,2843.7,0.0739]
[1766026413099,2.866,2844.5,2843.7,0.0739]
[1766026413295,2.866,2844.3,2843.6,4.56726893]
[1766026413493,2.866,2844.3,2843.8,0.46438023]
[1766026414175,2.866,2844.3,2843.8,0.49259992]
[1766026415109,0.2866,2844.5,2843.8,4.07848986]
[1766026415280,2.866,2844.5,2843.8,4.07848986]
[1766026416906,2.866,2844.5,2843.8,0.56209992]
[1766026417112,0.4759,2844.4,2843.8,0.02821969]
[1766026417409,2.866,2843.8,2843.5,0.002]
[1766026417613,2.3901,2843.8,2843.5,0.002]
[1766026417776,2.866,2843.9,2843.5,0.002]
[1766026420316,0.4759,2844.2,2843.5,0.46638023]
[1766026420524,2.866,2844.1,2843.5,0.46638023]
[1766026421023,1.05719606,2844.5,2842.9,0.46438023]
[1766026421024,0.4655,2843.5,2842.9,0.46438023]
[1766026421223,0.4655,2843.5,2842.7,0.002]
[1766026421224,2.8346,2843.0,2842.7,0.002]
[1766026421524,2.3691,2842.6,2842.2,0.002]
[1766026421741,0.04397537,2842.5,2842.2,0.002]
[1766026422055,0.14102805,2842.9,2842.2,0.48]
[1766026422238,2.51012805,2842.9,2842.2,0.48]
[1766026422522,2.97562805,2842.9,2842.2,0.48]
[1766026423210,2.8346,2842.9,2842.2,0.48]
[1766026424405,2.3691,2843.1,2842.3,0.478]
[1766026424799,0.4655,2844.2,2842.4,0.01527561]
[1766026425000,2.3691,2843.5,2842.5,0.478]
[1766026425320,2.3691,2843.5,2842.7,0.478]
[1766026425922,2.8346,2843.5,2842.7,0.478]
[1766026426228,2.3691,2843.5,2842.5,0.46438023]
[1766026426404,2.3691,2843.3,2842.5,0.94238023]
[1766026426599,0.04395836,2843.6,2842.6,0.478]
[1766026426821,2.8346,2843.8,2842.6,0.49326431]
[1766026427003,2.8346,2843.8,2842.6,0.478]
[1766026427323,2.8346,2843.8,2842.8,0.478]
[1766026427528,2.8346,2843.8,2842.9,0.478]
[1766026428227,2.3691,2843.8,2842.9,0.478]
[1766026428397,2.8346,2843.8,2843.1,0.02821969]
[1766026428819,2.8346,2843.8,2843.0,0.478]
[1766026429929,2.3691,2843.8,2843.2,0.02821969]
[1766026430103,2.8346,2843.6,2843.2,0.02821969]
[1766026430503,2.8346,2843.6,2843.0,0.50621969]
[1766026431109,2.3691,2843.6,2843.0,0.50621969]
[1766026431309,2.3691,2843.6,2843.1,0.93617425]
[1766026431648,2.3691,2843.6,2843.2,0.02821969]
[1766026434135,2.8346,2843.6,2843.1,0.45817425]
[1766026434430,2.3691,2843.6,2843.1,0.478]
[1766026435117,2.8346,2843.8,2843.1,0.478]
[1766026435436,2.8346,2843.8,2843.2,0.02821969]
[1766026435636,2.3691,2843.8,2843.2,0.50621969]
[1766026436533,2.8346,2843.8,2843.2,0.50621969]
[1766026437631,2.3691,2843.8,2843.1,0.002]
[1766026437824,0.4655,2843.5,2843.1,0.002]
[1766026438133,2.8346,2843.5,2843.1,0.002]
[1766026440102,3.51581535,2844.3,2843.1,0.002]
[1766026440103,0.4655,2844.4,2843.2,0.02821969]
[1766026440423,2.3691,2843.9,2843.2,0.50621969]
[1766026440606,0.4655,2844.3,2843.5,0.478]
[1766026440809,2.8346,2844.3,2843.6,0.50621969]
[1766026441020,0.46438023,2844.4,2843.8,0.50621969]
[1766026441235,2.8346,2844.3,2843.8,0.02821969]
[1766026441714,0.4655,2844.2,2843.8,0.02821969]
[1766026441920,2.3691,2844.1,2843.8,0.02821969]
[1766026443020,2.8346,2844.0,2843.4,0.02821969]
[1766026443433,2.8346,2843.9,2843.3,0.02821969]
[1766026443613,0.28346,2844.1,2843.5,0.50621969]
[1766026444152,2.8346,2844.1,2843.5,0.50621969]
[1766026446153,2.3691,2844.1,2843.5,0.02821969]
[1766026446354,2.3691,2843.9,2843.5,0.02821969]
[1766026446875,0.46438023,2844.6,2843.8,6.11037684]
[1766026447156,0.001,2844.8,2844.5,0.478]
[1766026448455,0.001,2844.8,2844.6,0.02821969]
[1766026449370,0.001,2844.8,2844.4,0.50621969]
[1766026450524,0.001,2844.8,2844.4,3.54382771]
[1766026450725,0.001,2844.8,2844.5,0.4387]
[1766026451518,0.001,2844.8,2844.4,0.48001969]
[1766026453346,0.001,2844.8,2844.4,0.02821969]
[1766026454958,0.001,2844.8,2844.4,0.48001969]
[1766026455959,0.001,2844.8,2844.5,0.4518]
[1766026456675,0.001,2844.8,2844.4,0.02821969]
[1766026456871,0.001,2844.8,2844.4,0.48001969]
[1766026457373,0.001,2844.8,2844.2,0.49259992]
[1766026457575,0.001,2844.8,2844.2,0.02821969]
[1766026457742,2.9365,2844.8,2844.2,0.48001969]
[1766026458270,2.9365,2844.8,2844.2,3.99589866]
[1766026458877,2.9365,2844.8,2844.2,0.48001969]
[1766026459176,2.9365,2844.8,2844.2,3.99593921]
[1766026460771,0.001,2844.8,2844.3,0.4518]
[1766026461277,2.4758,2844.8,2844.3,0.4518]
[1766026461574,0.001,2844.8,2844.5,0.4518]
[1766026461873,2.9355,2845.2,2844.5,0.4518]
[1766026462246,2.9355,2845.1,2844.5,0.4518]
[1766026462574,3.22905,2845.1,2844.5,0.4518]
[1766026463070,0.29355,2845.1,2844.5,0.4518]
[1766026463275,2.4748,2845.3,2844.7,0.4518]
[1766026463483,2.9355,2845.3,2844.7,0.4518]
[1766026463982,0.001,2845.4,2844.9,0.4518]
[1766026464278,0.4607,2845.3,2844.9,0.4518]
[1766026464447,2.9355,2845.3,2844.8,0.48001969]
[1766026465110,2.9355,2845.2,2844.8,0.02821969]
[1766026466754,2.4748,2845.0,2844.5,0.558]
[1766026466954,2.4748,2845.1,2844.5,1.02238023]
[1766026467201,2.4758,2845.4,2844.6,0.48001969]
[1766026467487,0.001,2845.3,2844.7,3.96706912]
[1766026467673,2.4758,2845.3,2844.7,0.4518]
[1766026469084,2.9365,2845.4,2844.7,0.4518]
[1766026469254,2.9355,2845.3,2844.7,0.4518]
[1766026469660,2.9355,2845.3,2844.5,1.02238023]
[1766026469661,2.4748,2845.1,2844.5,1.02238023]
[1766026469952,0.29375,2845.3,2844.4,3.96742771]
[1766026469953,0.4607,2844.8,2844.4,0.46438023]
[1766026470159,2.4748,2845.2,2844.5,0.46438023]
[1766026470470,2.9355,2845.1,2844.5,0.46438023]
[1766026470670,2.9355,2845.1,2844.6,0.48001969]
[1766026471799,0.001,2845.4,2844.6,3.96721918]
[1766026472002,0.001,2845.4,2844.8,0.48001969]
[1766026472174,0.001,2845.4,2844.8,0.4518]
[1766026472497,0.001,2845.4,2845.0,0.4518]
[1766026472994,2.9365,2845.4,2844.9,0.48001969]
[1766026474292,0.4607,2845.3,2844.9,0.02821969]
[1766026474654,2.9355,2845.3,2844.8,0.558]
[1766026474970,2.9355,2845.3,2844.8,1.0098]
[1766026475296,0.001,2845.1,2844.8,1.03801969]
[1766026475493,0.001,2845.1,2844.8,1.49616627]
[1766026478085,0.001,2845.4,2844.8,1.04436627]
[1766026478288,0.001,2845.4,2844.9,0.4518]
[1766026478494,2.4758,2845.4,2844.9,0.4518]
[1766026478695,2.9355,2845.2,2844.8,0.58621969]
[1766026478889,0.001,2845.4,2844.9,0.4518]
[1766026479474,2.4758,2845.4,2844.9,0.4518]
[1766026479678,2.9365,2845.4,2844.9,0.4518]
[1766026480180,0.001,2845.4,2845.1,0.4518]
[1766026480608,0.001,2845.7,2845.1,0.4518]
[1766026480910,2.4758,2845.7,2845.1,0.4518]
[1766026482382,2.4758,2845.7,2845.2,0.02821969]
[1766026482580,2.4758,2845.7,2845.2,0.44711969]
[1766026483009,2.9133,2845.7,2845.2,0.44711969]
[1766026483585,2.9133,2845.7,2845.2,0.4189]
[1766026484000,2.9133,2845.7,2845.0,0.02821969]
[1766026484178,2.4758,2845.7,2845.1,0.4189]
[1766026484378,2.9133,2845.7,2845.1,0.4189]
[1766026486616,2.5026,2845.5,2845.1,0.4189]
[1766026486807,2.9401,2845.5,2845.0,0.44711969]
[1766026488420,0.001,2845.7,2844.7,0.4189]
[1766026488421,0.4375,2845.4,2844.7,0.4189]
[1766026488586,2.5026,2845.2,2844.8,0.02821969]
[1766026488787,2.9401,2845.3,2844.8,0.44711969]
[1766026488990,2.9401,2845.6,2845.0,3.51493626]
[1766026489216,0.001,2845.7,2845.1,0.44711969]
[1766026489720,0.001,2845.8,2845.4,0.4189]
[1766026490093,0.001,2845.8,2845.5,0.44711969]
[1766026491325,0.001,2845.7,2845.5,0.44711969]
[1766026491991,0.001,2845.7,2845.5,0.02821969]
[1766026492526,0.001,2845.7,2845.5,0.4189]
[1766026494115,0.001,2845.7,2845.1,0.9769]
[1766026494116,2.5036,2845.7,2845.1,0.9769]
[1766026494344,2.5036,2845.7,2845.3,0.4189]
[1766026494658,0.001,2845.7,2845.3,0.4189]
[1766026496643,0.001,2845.7,2845.3,3.51456011]
[1766026496950,0.001,2845.8,2845.4,0.44711969]
[1766026499156,0.001,2845.8,2845.4,0.4189]
[1766026500412,2.5036,2845.8,2845.4,0.4209]
[1766026501354,2.9411,2845.8,2845.4,0.4209]
[1766026501551,2.9411,2845.8,2845.4,0.002]
[1766026501754,2.5036,2845.8,2845.4,0.002]
[1766026501964,2.9411,2845.8,2845.4,0.002]
[1766026502325,2.9411,2845.8,2845.4,0.4209]
[1766026503030,2.9411,2845.8,2845.4,0.002]
[1766026503931,2.5036,2845.8,2845.4,0.002]
[1766026504131,2.9401,2845.7,2845.4,0.002]
[1766026504933,0.001,2845.8,2845.4,0.002]
[1766026505275,2.5036,2845.8,2845.4,0.4209]
[1766026506044,2.9411,2845.8,2845.4,0.4209]
[1766026506246,0.001,2845.8,2845.4,0.4209]
[1766026506469,0.001,2846.0,2845.5,0.02821969]
[1766026506646,0.001,2846.0,2845.6,0.4189]
[1766026507040,0.001,2846.1,2845.8,0.4189]
[1766026508964,0.001,2846.1,2845.4,0.46638023]
[1766026508965,2.5026,2846.0,2845.4,0.46638023]
[1766026509168,2.9401,2846.0,2845.5,0.4189]
[1766026509338,2.5026,2846.0,2845.5,0.4189]
[1766026509668,2.9411,2846.1,2845.6,0.4189]
[1766026510981,2.9308,2846.0,2845.6,0.4189]
[1766026511143,2.5179,2845.8,2845.4,0.002]
[1766026511334,2.9308,2845.8,2845.4,0.002]
[1766026511733,2.9308,2845.8,2845.4,0.4263]
[1766026511950,2.5179,2845.8,2845.4,0.4263]
[1766026512774,2.56182592,2845.7,2845.4,0.002]
[1766026512974,3.18698259,2845.7,2845.4,0.002]
[1766026513270,2.9308,2846.0,2845.4,0.002]
[1766026516274,2.9318,2846.0,2845.4,0.002]
[1766026517145,2.5179,2845.6,2844.8,0.002]
[1766026517365,2.9308,2845.6,2844.9,0.02821969]
[1766026517839,2.81098,2845.6,2844.8,0.03021969]
[1766026518042,2.81098,2845.6,2844.8,0.002]
[1766026518043,2.9308,2845.1,2844.8,0.002]
[1766026521345,0.4129,2845.0,2844.8,0.002]
[1766026521541,2.9308,2845.0,2844.8,0.002]
[1766026523384,6.36646305,2845.6,2844.4,0.02821969]
[1766026523385,2.9308,2844.8,2844.4,0.02821969]
[1766026523786,0.4129,2845.1,2844.4,0.02821969]
[1766026523985,2.9308,2845.0,2844.4,0.02821969]
[1766026524354,2.5179,2845.0,2844.8,0.002]
[1766026524581,2.9308,2844.9,2844.8,0.002]
[1766026530295,2.9308,2844.9,2844.3,4.53717834]
[1766026530494,2.9308,2844.9,2844.3,4.96147834]
[1766026531104,2.9308,2844.9,2844.3,1.44568023]
[1766026531290,2.5179,2845.5,2844.4,0.45251969]
[1766026531493,0.29308,2845.6,2844.8,6.07782565]
[1766026531695,2.9308,2845.6,2845.1,6.50212565]
[1766026532072,2.9308,2845.6,2845.1,0.4243]
[1766026532272,2.5179,2845.6,2845.1,0.4243]
[1766026532483,2.9308,2845.5,2845.1,0.4243]
[1766026532775,2.9308,2845.4,2844.8,6.10604534]
[1766026532965,2.9308,2845.3,2844.9,0.70873453]
[1766026533581,2.9308,2845.3,2844.8,0.45251969]
[1766026534002,2.5179,2845.3,2844.8,0.45251969]
[1766026534502,2.9308,2845.3,2844.8,0.45251969]
[1766026535079,2.9308,2845.2,2844.7,0.46438023]
[1766026535295,2.9308,2845.1,2844.7,0.46438023]
[1766026535810,0.4129,2845.0,2844.5,0.46438023]
[1766026536006,2.5179,2844.9,2844.5,0.46438023]
[1766026536184,2.9308,2844.9,2844.5,0.46438023]
[1766026536590,2.9308,2844.9,2844.5,0.88868023]
[1766026537316,2.9308,2844.9,2844.4,0.45251969]
[1766026537496,2.5179,2844.7,2844.3,0.49459992]
[1766026537815,2.9308,2844.7,2844.3,0.46638023]
[1766026538329,0.4129,2844.6,2844.3,0.002]
[1766026538480,0.4129,2844.5,2844.3,0.002]
[1766026538685,2.9308,2844.5,2844.3,0.002]
[1766026540216,2.9308,2845.2,2844.4,0.4243]
[1766026540409,2.5179,2845.2,2844.6,6.07782565]
[1766026540604,2.5179,2845.2,2844.7,0.4243]
[1766026540805,0.4322,2845.1,2844.7,0.4243]
[1766026540985,0.4322,2844.9,2844.5,0.43811969]
[1766026541185,2.8673,2844.8,2844.4,0.02821969]
[1766026541489,2.8673,2844.8,2844.3,6.07982565]
[1766026542207,0.001,2845.4,2844.4,0.43811969]
[1766026542208,2.8673,2845.0,2844.4,0.43811969]
[1766026543413,2.4351,2845.2,2844.4,0.02821969]
[1766026543715,2.8673,2845.1,2844.4,0.02821969]
[1766026544014,3.51458595,2845.3,2844.4,0.02821969]
[1766026544015,0.4322,2845.0,2844.4,0.02821969]
[1766026544185,2.8673,2845.0,2844.4,0.02821969]
[1766026544388,6.07782565,2844.5,2843.6,0.002]
[1766026544589,2.4351,2844.0,2843.6,0.002]
[1766026544787,0.50832622,2844.4,2843.6,0.002]
[1766026544788,2.4351,2844.2,2843.6,0.002]
[1766026545092,2.8673,2844.2,2843.6,0.4119]
[1766026545293,0.28673,2844.1,2843.6,0.7806]
[1766026545490,3.15403,2844.1,2843.6,0.4119]
[1766026545704,2.8673,2844.0,2843.6,0.002]
[1766026546027,2.8673,2843.7,2843.5,0.002]
[1766026546232,0.46438023,2844.4,2843.5,0.002]
[1766026546426,3.98018376,2844.3,2843.5,0.002]
[1766026546725,2.8673,2843.9,2843.5,0.002]
[1766026547230,0.4322,2844.0,2843.5,0.002]
[1766026547412,2.8673,2844.2,2843.5,0.4119]
[1766026547727,0.33316802,2844.1,2843.5,0.4119]
[1766026548104,2.76826802,2844.1,2843.5,0.4119]
[1766026548331,3.20046802,2844.1,2843.5,0.4119]
[1766026548624,0.4322,2843.9,2843.5,0.002]
[1766026548825,2.8673,2843.8,2843.5,0.002]
[1766026549421,0.4322,2843.9,2843.5,0.002]
[1766026549621,2.8673,2843.9,2843.5,0.002]
[1766026551124,0.33316802,2844.1,2843.6,0.4099]
[1766026551328,2.8673,2844.2,2843.6,0.4099]
[1766026551895,2.8673,2844.5,2843.8,0.43811969]
[1766026554128,0.4322,2844.4,2843.8,0.43811969]
[1766026554329,2.8673,2844.4,2843.8,0.43811969]
[1766026554519,2.4351,2844.3,2843.8,0.4099]
[1766026554714,2.4351,2844.3,2843.7,0.3702]
[1766026554920,0.68471418,2844.4,2843.5,0.002]
[1766026554921,0.4322,2844.0,2843.5,0.002]
[1766026555239,2.8673,2843.8,2843.5,0.002]
[1766026555735,0.4322,2843.7,2843.5,0.002]
[1766026555936,2.4351,2843.6,2843.5,0.002]
[1766026556443,2.8673,2843.6,2843.2,0.002]
[1766026557713,2.8673,2843.4,2843.2,0.002]
[1766026558145,6.07782565,2844.3,2842.3,0.002]
[1766026558146,2.4351,2843.2,2842.3,0.002]
[1766026558354,0.4322,2842.5,2842.2,0.002]
[1766026558508,0.4322,2842.6,2842.2,0.002]
[1766026558709,2.8673,2842.6,2842.2,0.002]
[1766026559253,2.8673,2842.4,2842.1,0.002]
[1766026559551,0.4322,2842.6,2842.1,0.002]
[1766026559709,2.8673,2842.5,2842.1,0.002]
[1766026559911,2.4351,2842.3,2842.1,0.002]
[1766026560141,2.8673,2842.3,2842.1,0.002]
[1766026560511,2.4351,2842.3,2842.1,0.002]
[1766026561009,2.8673,2842.3,2842.0,0.002]
[1766026561624,2.8673,2842.2,2841.2,0.03021969]
[1766026561824,2.8673,2842.0,2841.3,3.51944405]
[1766026562019,0.28673,2842.3,2841.4,0.49259992]
[1766026562020,0.4322,2841.9,2841.4,0.49259992]
[1766026562210,2.8673,2842.1,2841.4,0.90249992]
[1766026562426,2.8673,2842.1,2841.4,1.38647629]
[1766026562620,2.8673,2842.1,2841.4,4.90578628]
[1766026563407,2.8673,2842.1,2841.4,1.38647629]
[1766026563608,2.8673,2842.1,2841.4,4.44148217]
[1766026563844,2.8673,2842.1,2841.4,0.92209606]
[1766026564862,2.8673,2842.1,2841.4,4.44148392]
[1766026565214,2.8673,2842.1,2841.4,1.38647629]
[1766026566343,2.8673,2842.1,2841.4,4.44145596]
[1766026566542,2.8673,2842.1,2841.5,0.4828956]
[1766026567447,0.4322,2842.3,2841.6,0.4099]
[1766026567633,2.8673,2842.3,2841.6,0.4099]
[1766026567948,2.8673,2842.2,2841.6,0.4099]
[1766026568649,2.4351,2841.8,2841.4,0.002]
[1766026568856,2.8673,2841.8,2841.4,0.002]
[1766026569153,2.8673,2841.7,2841.4,0.002]
[1766026569565,0.54266714,2842.6,2841.2,0.002]
[1766026569566,2.4351,2841.5,2841.2,0.002]
[1766026569724,2.8673,2841.5,2841.2,0.002]
[1766026570636,0.46438023,2842.1,2841.4,0.3892]
[1766026570836,0.4027,2842.2,2841.5,0.7894]
[1766026571055,2.77268023,2842.1,2841.5,0.7894]
[1766026571254,2.77268023,2842.1,2841.5,0.4002]
[1766026571556,2.3083,2842.1,2841.5,0.4002]
[1766026571753,2.7374,2842.1,2841.5,0.4002]
[1766026571919,2.7374,2842.1,2841.5,3.91942865]
[1766026572120,2.7374,2842.5,2841.7,0.8068]
[1766026572457,8.83519137,2843.6,2841.6,0.02821969]
[1766026572458,2.3083,2842.7,2841.6,0.02821969]
[1766026572662,2.3083,2842.3,2841.6,0.02821969]
[1766026572860,2.7374,2842.3,2841.6,0.02821969]
[1766026573533,2.7374,2842.2,2841.5,0.39476483]
[1766026573729,2.3083,2841.8,2841.2,0.03021969]
[1766026574056,2.3083,2841.8,2841.2,3.54985028]
[1766026574554,2.3083,2841.8,2841.2,0.44721969]
[1766026574954,2.7374,2841.9,2841.4,0.02821969]
[1766026575151,0.4291,2842.4,2841.4,3.54758512]
[1766026575356,2.7374,2842.1,2841.5,0.43535851]
[1766026575551,0.4291,2842.6,2841.6,0.44491969]
[1766026575857,2.7374,2842.4,2841.6,0.44491969]
[1766026576054,2.7374,2842.4,2841.7,0.4167]
[1766026576260,0.001,2842.3,2841.7,0.4167]
[1766026576827,2.3093,2842.3,2841.7,0.4167]
[1766026578961,2.7384,2842.3,2841.7,0.4167]
[1766026579559,2.7384,2842.3,2841.6,0.389]
[1766026579730,0.4291,2842.2,2841.5,0.85125851]
[1766026579925,2.7374,2842.2,2841.6,0.44008152]
[1766026580968,2.7374,2842.2,2841.6,0.46830121]
[1766026582143,2.7374,2842.2,2841.6,3.98742274]
[1766026582340,2.7374,2842.2,2841.6,4.40272274]
[1766026582654,0.001,2842.3,2841.7,0.4153]
[1766026582841,2.3093,2842.3,2841.8,0.89446227]
[1766026583255,0.001,2842.2,2841.8,0.89446227]
[1766026583963,0.001,2842.2,2841.9,0.4151]
[1766026584464,0.001,2842.2,2841.8,1.28296227]
[1766026584959,0.001,2842.2,2841.8,0.89406227]
[1766026585263,0.001,2842.2,2841.6,0.83181969]
[1766026585774,0.001,2842.2,2841.7,0.01529983]
[1766026585934,0.001,2842.2,2841.6,0.02821969]
[1766026586128,2.7384,2842.2,2841.5,0.4147]
[1766026586334,2.7384,2842.2,2841.6,0.02821969]
[1766026587309,2.7384,2842.2,2841.5,3.93393232]
[1766026587443,2.7384,2842.2,2841.6,0.02821969]
[1766026588972,2.3093,2842.2,2841.6,3.5473388]
[1766026589171,0.001,2842.2,2841.8,0.4141]
[1766026589337,0.001,2842.2,2841.6,0.02821969]
[1766026589536,2.3093,2842.2,2841.6,0.02821969]
[1766026590363,0.001,2842.2,2841.6,3.54731597]
[1766026590571,0.001,2842.2,2841.7,0.8025]
[1766026590769,0.001,2842.2,2841.8,0.4137]
[1766026591377,0.001,2842.2,2841.6,3.54731597]
[1766026591577,0.001,2842.2,2841.9,0.3888]
[1766026592049,0.001,2842.2,2841.7,0.3888]
[1766026592250,2.7384,2842.2,2841.7,0.8023]
[1766026592851,2.7384,2842.2,2841.6,0.02821969]
[1766026593581,2.7384,2842.2,2841.6,0.44141969]
[1766026594879,2.7384,2842.2,2841.6,0.4132]
[1766026595063,2.7384,2842.2,2841.6,0.44141969]
[1766026595255,2.7384,2842.2,2841.6,3.96055632]
[1766026595655,2.7384,2842.2,2841.7,0.4128]
[1766026595854,2.7384,2842.2,2841.7,0.8015]
[1766026596078,0.001,2842.2,2841.7,0.4128]
[1766026596285,0.001,2842.2,2841.9,0.4126]
[1766026597053,0.001,2842.2,2841.8,0.02821969]
[1766026597380,0.001,2842.2,2841.6,0.02821969]
[1766026597581,0.001,2842.2,2841.6,0.44071969]
[1766026598167,0.001,2842.2,2841.6,0.82941969]
[1766026598361,0.001,2842.2,2841.7,0.4123]
[1766026598575,0.001,2842.2,2841.8,0.4123]
[1766026599094,2.7384,2842.2,2841.7,0.801]
[1766026599289,2.7384,2842.2,2841.4,0.03021969]
[1766026599290,2.3083,2842.0,2841.4,3.96166275]
[1766026599592,2.7384,2842.2,2841.5,0.8008]
[1766026599807,3.01134,2842.1,2841.5,0.8008]
[1766026599959,3.01134,2842.1,2841.5,0.4121]
[1766026600160,2.3083,2841.8,2841.4,0.002]
[1766026600477,2.3083,2841.7,2841.2,0.002]
[1766026600676,2.7374,2841.4,2841.2,0.002]
[1766026600884,0.426,2841.7,2841.2,0.002]
[1766026601060,2.8244,2841.6,2841.2,0.002]
[1766026601262,3.10684,2841.6,2841.2,0.002]
[1766026601476,2.9333,2841.4,2841.2,0.002]
[1766026602081,2.5168,2841.4,2841.2,0.002]
[1766026602278,3.21574,2841.6,2841.2,0.002]
[1766026602784,2.5168,2841.5,2841.2,0.002]
[1766026602987,0.28244,2841.6,2841.2,0.002]
[1766026602988,0.28244,2841.6,2841.2,0.3915]
[1766026603189,2.9333,2841.8,2841.2,0.3915]
[1766026603357,3.22663,2841.8,2841.2,0.3915]
[1766026604062,3.22663,2841.8,2841.3,0.7802]
[1766026604557,3.22663,2841.8,2841.3,0.3895]
[1766026604884,2.8149,2841.7,2841.2,0.002]
[1766026605089,3.125723,2841.6,2841.2,0.002]
[1766026605293,0.310823,2841.6,2841.2,0.002]
[1766026605462,2.4091,2841.5,2841.2,0.002]
[1766026605789,2.8149,2841.5,2841.2,0.002]
[1766026606173,2.8149,2841.3,2841.1,0.002]
[1766026609694,2.4091,2841.3,2840.9,0.002]
[1766026609875,2.8149,2841.2,2840.9,0.002]
[1766026611415,2.4091,2841.8,2840.9,0.002]
[1766026611722,2.4091,2841.8,2841.2,0.4098]
[1766026612390,2.8149,2841.8,2841.2,0.4098]
[1766026613888,0.4058,2841.7,2841.1,0.3946]
[1766026614213,2.8149,2841.7,2841.1,0.3946]
[1766026615213,0.4058,2841.4,2840.9,0.002]
[1766026615417,2.8149,2841.2,2840.9,0.002]
[1766026615708,2.4091,2841.2,2840.9,0.002]
[1766026615889,0.4058,2841.4,2840.9,0.002]
[1766026616092,2.8149,2841.4,2840.9,0.4113]
[1766026616322,2.8149,2841.3,2840.9,0.002]
[1766026616610,0.4058,2841.2,2840.9,0.002]
[1766026616781,2.8149,2841.2,2840.9,0.002]
[1766026616980,2.4091,2841.3,2840.9,0.002]
[1766026617212,2.8149,2841.3,2840.9,0.002]
[1766026618409,2.8149,2841.2,2840.9,0.002]
[1766026618907,2.4091,2841.5,2840.9,0.002]
[1766026619107,2.8149,2841.5,2840.9,0.002]
[1766026620185,0.001,2841.3,2840.9,0.002]
[1766026620390,0.001,2841.3,2840.9,0.4106]
[1766026620907,0.001,2841.3,2841.1,0.4086]
[1766026621284,0.001,2841.3,2841.0,0.3946]
[1766026621601,0.001,2841.3,2841.0,0.4085]
[1766026623525,2.8809,2841.8,2841.2,0.4072]
[1766026627022,2.4621,2841.8,2841.2,0.4072]
[1766026627221,2.5243,2841.6,2841.2,0.4072]
[1766026627400,2.9507,2841.6,2841.2,0.4072]
[1766026627717,2.5243,2841.8,2841.1,0.792]
[1766026627923,2.9507,2841.8,2841.1,0.792]
[1766026628418,2.9517,2841.8,2841.1,0.792]
[1766026628790,2.5253,2841.8,2841.1,0.792]
[1766026629009,2.9352,2841.8,2841.1,0.792]
[1766026630724,0.4146,2841.7,2841.1,0.792]
[1766026630925,2.7802,2841.7,2841.1,0.82870735]
[1766026631088,0.001,2841.8,2841.3,0.41681969]
[1766026631295,2.7931,2841.8,2841.1,0.43420735]
[1766026631501,0.4265,2841.7,2841.2,0.6338911]
[1766026631692,0.3931,2841.3,2840.9,0.002]
[1766026631945,0.3931,2841.0,2840.2,0.002]
[1766026632104,0.3931,2841.0,2840.4,2.6023]
[1766026632351,0.3931,2840.9,2840.2,0.002]
[1766026632623,2.8147,2840.5,2840.2,0.002]
[1766026633399,2.8147,2840.3,2840.0,0.002]
[1766026633896,0.3931,2840.4,2840.0,0.002]
[1766026634120,2.8147,2840.4,2840.0,0.002]
[1766026635523,0.3931,2841.1,2840.1,2.2067]
[1766026635827,0.46438023,2841.2,2840.6,8.70298319]
[1766026636229,2.8147,2841.2,2840.6,8.70298319]
[1766026636635,3.27908023,2841.1,2840.6,8.70298319]
[1766026637128,3.27908023,2841.1,2840.6,2.612]
[1766026637919,0.3931,2841.3,2840.6,2.612]
[1766026638125,2.8147,2841.3,2840.6,2.612]
[1766026639124,2.8147,2841.2,2840.6,2.612]
[1766026639712,2.8147,2841.2,2840.4,9.63975511]
[1766026639713,0.3931,2841.1,2840.4,8.71038319]
[1766026639910,2.8081,2841.1,2840.4,12.23099622]
[1766026640118,2.8081,2841.1,2840.4,8.71038319]
[1766026640428,2.8081,2841.1,2840.4,11.82607644]
[1766026640629,2.8081,2841.1,2840.5,2.6247]
[1766026640929,2.8081,2841.1,2840.5,2.2201]
[1766026641235,0.46438023,2841.3,2840.6,2.2201]
[1766026641533,2.8998,2841.4,2840.4,9.63979613]
[1766026641534,2.8998,2841.4,2840.8,2.6264]
[1766026642518,2.4777,2841.4,2840.7,6.09098319]
[1766026642839,2.94379394,2841.3,2840.7,6.09098319]
[1766026643010,2.8998,2841.3,2840.7,6.09098319]
[1766026645948,2.8998,2841.3,2840.6,12.24154138]
[1766026648552,1.06107422,2841.7,2840.6,12.24154138]
[1766026648720,3.94700801,2841.7,2840.9,2.2342]
[1766026648919,0.51840708,2841.6,2841.0,2.6381]
[1766026649317,2.8998,2841.4,2840.6,9.61334138]
[1766026649647,2.8998,2841.4,2840.8,2.6397]
[1766026652262,2.4777,2841.4,2840.8,2.6397]
[1766026652462,0.4178,2841.2,2840.6,6.09298319]
[1766026652754,2.868,2841.2,2840.6,9.61333815]